[Event "*** Titled Tuesday Blitz"]
[Site "Chess.com"]
[Date "2020.12.01"]
[Round "5"]
[White "FMKonstantin_Twitch"]
[Black "VladimirBugayev"]
[Result "1-0"]
[WhiteElo "2602"]
[BlackElo "2285"]
[TimeControl "180+1"]
[EndTime "10:53:00 PST"]
[Termination "FMKonstantin_Twitch won on time"]

1. d4 {[%clk 0:03:00.9]} 1... Nf6 {[%clk 0:02:59.3]} 2. Bf4 {[%clk 0:02:56.8]}
2... g6 {[%clk 0:02:56.4]} 3. e3 {[%clk 0:02:54.6]} 3... Bg7 {[%clk 0:02:56.8]}
4. Nc3 {[%clk 0:02:54.6]} 4... d6 {[%clk 0:02:57.3]} 5. Nf3 {[%clk 0:02:54.3]}
5... O-O {[%clk 0:02:45.6]} 6. h3 {[%clk 0:02:53.7]} 6... Nc6 {[%clk 0:02:41.4]}
7. Be2 {[%clk 0:02:53.7]} 7... Re8 {[%clk 0:02:40.9]} 8. O-O {[%clk 0:02:52.9]}
8... a6 {[%clk 0:02:23.8]} 9. a4 {[%clk 0:02:45.7]} 9... b6 {[%clk 0:02:20.5]}
10. Bh2 {[%clk 0:02:45.4]} 10... Bb7 {[%clk 0:02:20.7]} 11. Qd2 {[%clk 0:02:41]}
11... e6 {[%clk 0:01:53.4]} 12. Rfd1 {[%clk 0:02:37.8]} 12... Ne7 {[%clk
0:01:51.8]} 13. Qe1 {[%clk 0:02:29.5]} 13... Ne4 {[%clk 0:01:42.2]} 14. Nxe4
{[%clk 0:02:28.2]} 14... Bxe4 {[%clk 0:01:42.1]} 15. c3 {[%clk 0:02:29.1]} 15...
Bb7 {[%clk 0:01:34.4]} 16. Qf1 {[%clk 0:02:28.2]} 16... a5 {[%clk 0:01:26.1]}
17. Nd2 {[%clk 0:02:23]} 17... Qc8 {[%clk 0:01:18.5]} 18. Bb5 {[%clk 0:02:22.3]}
18... c6 {[%clk 0:01:12]} 19. Bd3 {[%clk 0:02:21.4]} 19... Ba6 {[%clk
0:01:11.9]} 20. Nc4 {[%clk 0:02:18.1]} 20... Bxc4 {[%clk 0:01:08.1]} 21. Bxc4
{[%clk 0:02:19]} 21... d5 {[%clk 0:01:08.6]} 22. Bd3 {[%clk 0:02:18.5]} 22...
Qd7 {[%clk 0:00:57.1]} 23. c4 {[%clk 0:02:05.7]} 23... Red8 {[%clk 0:00:41.7]}
24. Rac1 {[%clk 0:02:00.9]} 24... Rac8 {[%clk 0:00:18.4]} 25. b3 {[%clk
0:01:57.9]} 25... Nf5 {[%clk 0:00:12.1]} 26. Qe1 {[%clk 0:01:57.4]} 26... Nh4
{[%clk 0:00:09.2]} 27. f3 {[%clk 0:01:52.1]} 27... Qe7 {[%clk 0:00:08]} 28. Kh1
{[%clk 0:01:51.2]} 28... Nf5 {[%clk 0:00:05.2]} 29. Qf2 {[%clk 0:01:46.6]} 29...
Qg5 {[%clk 0:00:03.4]} 30. Bf4 {[%clk 0:01:42.2]} 1-0

[Event "*** Titled Tuesday Blitz"]
[Site "Chess.com"]
[Date "2020.12.01"]
[Round "5"]
[White "cukin84"]
[Black "Nadeev_Sergey"]
[Result "0-1"]
[WhiteElo "2186"]
[BlackElo "2455"]
[TimeControl "180+1"]
[EndTime "10:53:04 PST"]
[Termination "Nadeev_Sergey won by resignation"]

1. e4 {[%clk 0:03:00.9]} 1... e5 {[%clk 0:02:59.7]} 2. Nf3 {[%clk 0:02:59.6]}
2... Nc6 {[%clk 0:03:00.2]} 3. c3 {[%clk 0:02:59]} 3... d5 {[%clk 0:02:59.2]} 4.
Qa4 {[%clk 0:02:58.2]} 4... f6 {[%clk 0:02:53.1]} 5. Bb5 {[%clk 0:02:54.8]} 5...
Ne7 {[%clk 0:02:52.6]} 6. d3 {[%clk 0:02:54.2]} 6... Be6 {[%clk 0:02:40.2]} 7.
O-O {[%clk 0:02:52.5]} 7... a6 {[%clk 0:02:40.2]} 8. Bxc6+ {[%clk 0:02:52]} 8...
Nxc6 {[%clk 0:02:40.4]} 9. Rd1 {[%clk 0:02:49.5]} 9... b5 {[%clk 0:02:05.2]} 10.
Qc2 {[%clk 0:02:48.2]} 10... Bd6 {[%clk 0:02:03.8]} 11. Nbd2 {[%clk 0:02:44.8]}
11... O-O {[%clk 0:02:03.3]} 12. Nf1 {[%clk 0:02:41.6]} 12... Ne7 {[%clk
0:01:58.6]} 13. d4 {[%clk 0:02:38.6]} 13... dxe4 {[%clk 0:01:55.1]} 14. Qxe4
{[%clk 0:02:37.9]} 14... Bd5 {[%clk 0:01:53.4]} 15. Qe2 {[%clk 0:02:33.3]} 15...
e4 {[%clk 0:01:51.9]} 16. N3d2 {[%clk 0:02:29.9]} 16... f5 {[%clk 0:01:45.9]}
17. Ne3 {[%clk 0:02:29.4]} 17... c6 {[%clk 0:01:45.7]} 18. Ndf1 {[%clk
0:02:26.8]} 18... Ng6 {[%clk 0:01:45]} 19. g3 {[%clk 0:02:16]} 19... f4 {[%clk
0:01:39.7]} 20. Nxd5 {[%clk 0:02:15.2]} 20... cxd5 {[%clk 0:01:40.6]} 21. b3
{[%clk 0:02:09.5]} 21... Rc8 {[%clk 0:01:37.9]} 22. a4 {[%clk 0:02:05.8]} 22...
Qd7 {[%clk 0:01:33.4]} 23. axb5 {[%clk 0:02:05.2]} 23... axb5 {[%clk 0:01:34.3]}
24. Ra6 {[%clk 0:02:04.4]} 24... f3 {[%clk 0:01:15.4]} 25. Qa2 {[%clk
0:02:00.4]} 25... Qh3 {[%clk 0:00:59.5]} 26. Ne3 {[%clk 0:02:00.5]} 26... Nh4
{[%clk 0:00:46.7]} 27. Rxd6 {[%clk 0:01:52.5]} 27... Ng2 {[%clk 0:00:46.4]} 28.
Rxd5 {[%clk 0:01:30.5]} 28... Nxe3 {[%clk 0:00:45.4]} 29. fxe3 {[%clk
0:01:29.9]} 29... f2+ {[%clk 0:00:46.3]} 30. Qxf2 {[%clk 0:01:25.5]} 30... Rxf2
{[%clk 0:00:47.2]} 31. Kxf2 {[%clk 0:01:25.7]} 31... Qxh2+ {[%clk 0:00:47.4]}
32. Ke1 {[%clk 0:01:25.1]} 32... Qxg3+ {[%clk 0:00:46.5]} 33. Ke2 {[%clk
0:01:13.8]} 33... Qg2+ {[%clk 0:00:46.6]} 34. Ke1 {[%clk 0:01:13.6]} 34... Rf8
{[%clk 0:00:46.5]} 0-1

[Event "*** Titled Tuesday Blitz"]
[Site "Chess.com"]
[Date "2020.12.01"]
[Round "5"]
[White "Colombiano07"]
[Black "Semetey"]
[Result "0-1"]
[WhiteElo "2287"]
[BlackElo "2583"]
[TimeControl "180+1"]
[EndTime "10:53:09 PST"]
[Termination "Semetey won by resignation"]

1. d4 {[%clk 0:03:00.9]} 1... Nf6 {[%clk 0:02:59.5]} 2. Nf3 {[%clk 0:03:00.6]}
2... g6 {[%clk 0:03:00.4]} 3. e3 {[%clk 0:03:00.6]} 3... Bg7 {[%clk 0:02:59.6]}
4. Be2 {[%clk 0:03:01.5]} 4... O-O {[%clk 0:02:58]} 5. O-O {[%clk 0:03:02.4]}
5... c5 {[%clk 0:02:57.6]} 6. c4 {[%clk 0:03:03.3]} 6... cxd4 {[%clk 0:02:57.1]}
7. exd4 {[%clk 0:03:04.2]} 7... d5 {[%clk 0:02:57.6]} 8. b3 {[%clk 0:03:03.9]}
8... Nc6 {[%clk 0:02:57.6]} 9. Nc3 {[%clk 0:03:03.9]} 9... Bg4 {[%clk
0:02:57.8]} 10. Be3 {[%clk 0:02:48.7]} 10... Rc8 {[%clk 0:02:53.2]} 11. h3
{[%clk 0:02:48.3]} 11... Bxf3 {[%clk 0:02:52.7]} 12. Bxf3 {[%clk 0:02:49.2]}
12... dxc4 {[%clk 0:02:42.7]} 13. bxc4 {[%clk 0:02:50.1]} 13... Na5 {[%clk
0:02:42.7]} 14. c5 {[%clk 0:02:44.4]} 14... b6 {[%clk 0:02:34.4]} 15. Qa4 {[%clk
0:02:36.9]} 15... a6 {[%clk 0:02:19]} 16. cxb6 {[%clk 0:02:24.8]} 16... Qxb6
{[%clk 0:02:17.4]} 17. Rab1 {[%clk 0:02:20.5]} 17... Qd8 {[%clk 0:02:15]} 18.
Rfc1 {[%clk 0:02:16.3]} 18... Nc4 {[%clk 0:01:56.9]} 19. Qxa6 {[%clk 0:02:02.4]}
19... Nxe3 {[%clk 0:01:56.3]} 20. fxe3 {[%clk 0:01:58.3]} 20... Bh6 {[%clk
0:01:55.5]} 21. Qe2 {[%clk 0:01:47.5]} 21... Qa5 {[%clk 0:01:35.8]} 22. Ne4
{[%clk 0:01:06.7]} 22... Nd5 {[%clk 0:01:19.6]} 23. Rxc8 {[%clk 0:00:45]} 23...
Rxc8 {[%clk 0:01:13]} 24. Rb5 {[%clk 0:00:44.5]} 24... Bxe3+ {[%clk 0:01:09.7]}
25. Kh1 {[%clk 0:00:40.4]} 25... Rc1+ {[%clk 0:01:07.9]} 26. Kh2 {[%clk
0:00:38.9]} 26... Qc7+ {[%clk 0:00:57.7]} 27. g3 {[%clk 0:00:35.9]} 27... Rc2
{[%clk 0:00:57]} 0-1

[Event "*** Titled Tuesday Blitz"]
[Site "Chess.com"]
[Date "2020.12.01"]
[Round "5"]
[White "Infernal_XaM"]
[Black "banane_verte"]
[Result "1-0"]
[WhiteElo "2833"]
[BlackElo "2486"]
[TimeControl "180+1"]
[EndTime "10:53:19 PST"]
[Termination "Infernal_XaM won by checkmate"]

1. d4 {[%clk 0:03:00.9]} 1... Nf6 {[%clk 0:02:59.8]} 2. c4 {[%clk 0:03:00.1]}
2... e6 {[%clk 0:02:59.6]} 3. Nc3 {[%clk 0:02:53.1]} 3... Bb4 {[%clk 0:02:59.2]}
4. Bd2 {[%clk 0:02:52]} 4... b6 {[%clk 0:02:56.5]} 5. f3 {[%clk 0:02:49.6]} 5...
Bb7 {[%clk 0:02:42.1]} 6. e4 {[%clk 0:02:49.3]} 6... Bxc3 {[%clk 0:02:37.5]} 7.
Bxc3 {[%clk 0:02:47.9]} 7... Nxe4 {[%clk 0:02:31]} 8. fxe4 {[%clk 0:02:47.8]}
8... Qh4+ {[%clk 0:02:31.6]} 9. Kd2 {[%clk 0:02:47.7]} 9... Qf4+ {[%clk
0:02:17]} 10. Kc2 {[%clk 0:02:46.5]} 10... Bxe4+ {[%clk 0:02:16.8]} 11. Bd3
{[%clk 0:02:46.3]} 11... Bxg2 {[%clk 0:02:11.5]} 12. Ne2 {[%clk 0:02:46.1]}
12... Qf2 {[%clk 0:01:33.9]} 13. Rg1 {[%clk 0:02:39.8]} 13... Nc6 {[%clk
0:01:29]} 14. Qe1 {[%clk 0:02:35]} 14... Qf3 {[%clk 0:01:02.3]} 15. d5 {[%clk
0:02:34.4]} 15... Ne7 {[%clk 0:00:50.8]} 16. Nd4 {[%clk 0:02:33.9]} 16... Qg4
{[%clk 0:00:47.9]} 17. Qf2 {[%clk 0:02:33.4]} 17... O-O-O {[%clk 0:00:32.5]} 18.
Rxg2 {[%clk 0:02:33.2]} 18... Qh3 {[%clk 0:00:31.3]} 19. Rg3 {[%clk 0:02:32.7]}
19... Qh4 {[%clk 0:00:28.4]} 20. Nb5 {[%clk 0:02:31.3]} 20... exd5 {[%clk
0:00:24.4]} 21. Bxg7 {[%clk 0:02:24]} 21... Rhg8 {[%clk 0:00:23.4]} 22. Bf6
{[%clk 0:02:23.2]} 22... Qh5 {[%clk 0:00:07.1]} 23. Bxe7 {[%clk 0:02:22.7]}
23... dxc4 {[%clk 0:00:07]} 24. Bxc4 {[%clk 0:02:21.5]} 24... Rxg3 {[%clk
0:00:04.9]} 25. hxg3 {[%clk 0:02:21]} 25... Re8 {[%clk 0:00:05.4]} 26. Qxf7
{[%clk 0:02:17.6]} 26... Qxf7 {[%clk 0:00:04.6]} 27. Bxf7 {[%clk 0:02:17.1]}
27... Rxe7 {[%clk 0:00:05.5]} 28. Bc4 {[%clk 0:02:17.2]} 28... Rg7 {[%clk
0:00:04.9]} 29. Rg1 {[%clk 0:02:15.7]} 29... c6 {[%clk 0:00:04.4]} 30. Nd6+
{[%clk 0:02:15.2]} 30... Kd8 {[%clk 0:00:03]} 31. Nf5 {[%clk 0:02:14.3]} 31...
Rg4 {[%clk 0:00:02.4]} 32. Be2 {[%clk 0:02:11.9]} 32... Rg5 {[%clk 0:00:02.4]}
33. Nh4 {[%clk 0:02:08.1]} 33... d5 {[%clk 0:00:02.9]} 34. Nf3 {[%clk
0:02:06.7]} 34... Rg7 {[%clk 0:00:03]} 35. g4 {[%clk 0:02:06.9]} 35... Kc7
{[%clk 0:00:03.4]} 36. g5 {[%clk 0:02:06.8]} 36... c5 {[%clk 0:00:03.9]} 37. Rh1
{[%clk 0:02:06.5]} 37... Kd6 {[%clk 0:00:04]} 38. Rh6+ {[%clk 0:02:05.7]} 38...
Kc7 {[%clk 0:00:03.5]} 39. Bd3 {[%clk 0:02:06]} 39... c4 {[%clk 0:00:01.9]} 40.
Bf5 {[%clk 0:02:06.1]} 40... Kb7 {[%clk 0:00:01.5]} 41. Rxh7 {[%clk 0:02:05.5]}
41... Rxh7 {[%clk 0:00:01.8]} 42. Bxh7 {[%clk 0:02:06.4]} 42... d4 {[%clk
0:00:01.1]} 43. Nxd4 {[%clk 0:02:06.5]} 43... c3 {[%clk 0:00:01.3]} 44. Be4+
{[%clk 0:02:06.1]} 44... Ka6 {[%clk 0:00:01.4]} 45. bxc3 {[%clk 0:02:06.9]}
45... b5 {[%clk 0:00:01.9]} 46. g6 {[%clk 0:02:07.2]} 46... Ka5 {[%clk
0:00:02.6]} 47. g7 {[%clk 0:02:07.4]} 47... Ka4 {[%clk 0:00:03.5]} 48. g8=Q
{[%clk 0:02:07.6]} 48... a5 {[%clk 0:00:04.4]} 49. Qb3# {[%clk 0:02:07.4]} 1-0

[Event "*** Titled Tuesday Blitz"]
[Site "Chess.com"]
[Date "2020.12.01"]
[Round "5"]
[White "machinegun1"]
[Black "BAS8892"]
[Result "0-1"]
[WhiteElo "2526"]
[BlackElo "2721"]
[TimeControl "180+1"]
[EndTime "10:53:21 PST"]
[Termination "BAS8892 won by resignation"]

1. e4 {[%clk 0:03:00.9]} 1... c5 {[%clk 0:02:59]} 2. Nf3 {[%clk 0:03:00.5]} 2...
d6 {[%clk 0:02:58.8]} 3. d4 {[%clk 0:03:01]} 3... cxd4 {[%clk 0:02:59.2]} 4.
Nxd4 {[%clk 0:03:01.7]} 4... Nf6 {[%clk 0:02:59.6]} 5. Nc3 {[%clk 0:03:02.4]}
5... a6 {[%clk 0:02:57.6]} 6. Bc4 {[%clk 0:03:02.5]} 6... e6 {[%clk 0:02:56.7]}
7. g4 {[%clk 0:03:02.4]} 7... h6 {[%clk 0:02:49.4]} 8. Bb3 {[%clk 0:02:56.6]}
8... b5 {[%clk 0:02:43.5]} 9. a3 {[%clk 0:02:56]} 9... Bb7 {[%clk 0:02:42.5]}
10. Qe2 {[%clk 0:02:52.3]} 10... Nbd7 {[%clk 0:02:37.1]} 11. Rg1 {[%clk
0:02:46.9]} 11... Nc5 {[%clk 0:02:36.4]} 12. f3 {[%clk 0:02:42.6]} 12... Nxb3
{[%clk 0:02:35.8]} 13. cxb3 {[%clk 0:02:42.8]} 13... Be7 {[%clk 0:02:32.9]} 14.
Be3 {[%clk 0:02:42.7]} 14... Rc8 {[%clk 0:02:29.3]} 15. h4 {[%clk 0:02:42]}
15... d5 {[%clk 0:02:20.7]} 16. g5 {[%clk 0:02:39]} 16... hxg5 {[%clk
0:02:17.4]} 17. hxg5 {[%clk 0:02:38.8]} 17... e5 {[%clk 0:01:57.3]} 18. gxf6
{[%clk 0:02:38]} 18... Bxf6 {[%clk 0:01:56.3]} 19. O-O-O {[%clk 0:02:35.1]}
19... exd4 {[%clk 0:01:51.8]} 20. Bxd4 {[%clk 0:02:34.5]} 20... O-O {[%clk
0:01:47.7]} 21. e5 {[%clk 0:02:31.8]} 21... Bg5+ {[%clk 0:01:35.4]} 22. Kb1
{[%clk 0:02:29.6]} 22... Bh6 {[%clk 0:01:13.6]} 23. Rg4 {[%clk 0:02:22.9]} 23...
Rc6 {[%clk 0:01:09.6]} 24. Rh1 {[%clk 0:02:21.9]} 24... Bc8 {[%clk 0:01:08.3]}
25. Rgh4 {[%clk 0:02:11.6]} 25... Bf5+ {[%clk 0:01:07.1]} 26. Ka2 {[%clk
0:02:10.8]} 26... Re8 {[%clk 0:01:04.4]} 27. f4 {[%clk 0:02:10.1]} 27... Rg6
{[%clk 0:00:58.4]} 28. Qf3 {[%clk 0:01:56.4]} 28... Qd7 {[%clk 0:00:55.3]} 29.
Bc5 {[%clk 0:01:40.8]} 29... d4 {[%clk 0:00:53.1]} 30. Nd5 {[%clk 0:01:34.9]}
30... d3 {[%clk 0:00:52.7]} 31. Nf6+ {[%clk 0:01:24.3]} 31... gxf6 {[%clk
0:00:48.8]} 32. Rxh6 {[%clk 0:01:24.5]} 32... Rxh6 {[%clk 0:00:48.9]} 33. Rxh6
{[%clk 0:01:24.6]} 33... d2 {[%clk 0:00:35.9]} 34. Qh5 {[%clk 0:01:22.6]} 34...
Bb1+ {[%clk 0:00:30.6]} 35. Ka1 {[%clk 0:01:22.3]} 35... Bh7 {[%clk 0:00:29.9]}
36. Rxh7 {[%clk 0:01:16.3]} 36... d1=Q+ {[%clk 0:00:29.3]} 37. Ka2 {[%clk
0:01:15.9]} 37... Qxh5 {[%clk 0:00:28.9]} 38. Rxh5 {[%clk 0:01:16.1]} 38... fxe5
{[%clk 0:00:29.2]} 0-1

[Event "*** Titled Tuesday Blitz"]
[Site "Chess.com"]
[Date "2020.12.01"]
[Round "5"]
[White "ajedrezsinlimites"]
[Black "alexrustemov"]
[Result "1-0"]
[WhiteElo "2500"]
[BlackElo "2620"]
[TimeControl "180+1"]
[EndTime "10:53:21 PST"]
[Termination "ajedrezsinlimites won by resignation"]

1. e4 {[%clk 0:02:58.8]} 1... e6 {[%clk 0:02:59.5]} 2. d4 {[%clk 0:02:58.2]}
2... d5 {[%clk 0:02:59.6]} 3. exd5 {[%clk 0:02:59.1]} 3... exd5 {[%clk
0:02:59.1]} 4. Bd3 {[%clk 0:02:59.7]} 4... Nc6 {[%clk 0:02:56.7]} 5. c3 {[%clk
0:03:00.6]} 5... Bd6 {[%clk 0:02:55.8]} 6. Nf3 {[%clk 0:02:58.5]} 6... Bg4
{[%clk 0:02:54.6]} 7. O-O {[%clk 0:02:58.5]} 7... Nge7 {[%clk 0:02:53.7]} 8. a4
{[%clk 0:02:59]} 8... Qd7 {[%clk 0:02:52.7]} 9. b4 {[%clk 0:02:59.1]} 9... Bf5
{[%clk 0:02:49.2]} 10. Re1 {[%clk 0:02:58.1]} 10... Bxd3 {[%clk 0:02:47.4]} 11.
Qxd3 {[%clk 0:02:57.7]} 11... O-O {[%clk 0:02:47.3]} 12. Be3 {[%clk 0:02:56.6]}
12... Qf5 {[%clk 0:02:46.3]} 13. Qxf5 {[%clk 0:02:51]} 13... Nxf5 {[%clk
0:02:47.2]} 14. Nbd2 {[%clk 0:02:50.8]} 14... Rfe8 {[%clk 0:02:45.1]} 15. Kf1
{[%clk 0:02:47.2]} 15... h5 {[%clk 0:02:41.9]} 16. Nb3 {[%clk 0:02:46.7]} 16...
f6 {[%clk 0:02:33.3]} 17. h4 {[%clk 0:02:43.1]} 17... Kf7 {[%clk 0:02:32.7]} 18.
g3 {[%clk 0:02:42.5]} 18... a6 {[%clk 0:02:30.4]} 19. Na5 {[%clk 0:02:36.3]}
19... Nxa5 {[%clk 0:02:28.1]} 20. bxa5 {[%clk 0:02:37.2]} 20... Ne7 {[%clk
0:02:25.6]} 21. Rab1 {[%clk 0:02:36]} 21... Reb8 {[%clk 0:02:17]} 22. Nd2 {[%clk
0:02:26.1]} 22... Nc6 {[%clk 0:02:14]} 23. Nb3 {[%clk 0:02:26.1]} 23... b6
{[%clk 0:02:07.9]} 24. axb6 {[%clk 0:02:25.5]} 24... Rxb6 {[%clk 0:02:06]} 25.
Nd2 {[%clk 0:02:25.6]} 25... Rab8 {[%clk 0:02:01.1]} 26. Rxb6 {[%clk 0:02:24.5]}
26... cxb6 {[%clk 0:01:55.9]} 27. Rb1 {[%clk 0:02:23.1]} 27... Na5 {[%clk
0:01:53.8]} 28. Ke2 {[%clk 0:02:22.1]} 28... Ke6 {[%clk 0:01:49.7]} 29. Kd3
{[%clk 0:02:22]} 29... Kd7 {[%clk 0:01:48.9]} 30. c4 {[%clk 0:02:16.4]} 30...
Kc6 {[%clk 0:01:36.1]} 31. cxd5+ {[%clk 0:02:05.4]} 31... Kxd5 {[%clk
0:01:35.5]} 32. Ne4 {[%clk 0:02:05.6]} 32... Rb7 {[%clk 0:00:40.4]} 33. Bd2
{[%clk 0:02:02.2]} 33... f5 {[%clk 0:00:30.9]} 34. Nxd6 {[%clk 0:02:01.2]} 34...
Kxd6 {[%clk 0:00:17.6]} 35. Bxa5 {[%clk 0:02:00]} 35... b5 {[%clk 0:00:17.9]}
36. axb5 {[%clk 0:01:58.7]} 36... axb5 {[%clk 0:00:17.6]} 37. Bb4+ {[%clk
0:01:58.7]} 37... Kd5 {[%clk 0:00:18]} 38. Rc1 {[%clk 0:01:58.9]} 38... Ra7
{[%clk 0:00:16.3]} 39. Rc5+ {[%clk 0:01:58.8]} 39... Ke6 {[%clk 0:00:17]} 40.
Rxb5 {[%clk 0:01:57.2]} 40... Ra1 {[%clk 0:00:16.6]} 41. Rb6+ {[%clk 0:01:55.2]}
41... Kf7 {[%clk 0:00:15.5]} 42. d5 {[%clk 0:01:50.3]} 42... Rd1+ {[%clk
0:00:13]} 43. Bd2 {[%clk 0:01:49.3]} 1-0

[Event "*** Titled Tuesday Blitz"]
[Site "Chess.com"]
[Date "2020.12.01"]
[Round "5"]
[White "Karacsonyi_Gellert"]
[Black "Hikaru"]
[Result "0-1"]
[WhiteElo "2664"]
[BlackElo "3184"]
[TimeControl "180+1"]
[EndTime "10:53:27 PST"]
[Termination "Hikaru won by resignation"]

1. e4 {[%clk 0:03:00.9]} 1... g6 {[%clk 0:02:51.9]} 2. d4 {[%clk 0:03:00.3]}
2... Bg7 {[%clk 0:02:52.8]} 3. Nc3 {[%clk 0:03:00.3]} 3... a6 {[%clk 0:02:51.7]}
4. Nf3 {[%clk 0:03:00.4]} 4... b5 {[%clk 0:02:50.8]} 5. Be3 {[%clk 0:02:58]}
5... Bb7 {[%clk 0:02:50.8]} 6. Bd3 {[%clk 0:02:58.3]} 6... d6 {[%clk 0:02:51.2]}
7. O-O {[%clk 0:02:56.8]} 7... Nd7 {[%clk 0:02:51.2]} 8. a3 {[%clk 0:02:57]}
8... Ngf6 {[%clk 0:02:48.7]} 9. Qd2 {[%clk 0:02:53]} 9... e5 {[%clk 0:02:48.7]}
10. Bh6 {[%clk 0:02:48.8]} 10... O-O {[%clk 0:02:48]} 11. Bxg7 {[%clk
0:02:48.6]} 11... Kxg7 {[%clk 0:02:48.9]} 12. dxe5 {[%clk 0:02:44.3]} 12... dxe5
{[%clk 0:02:48.1]} 13. Qg5 {[%clk 0:02:42.8]} 13... h6 {[%clk 0:02:45.1]} 14.
Qg3 {[%clk 0:02:25.2]} 14... Qe7 {[%clk 0:02:43.9]} 15. Rad1 {[%clk 0:02:15.3]}
15... Rad8 {[%clk 0:02:42.1]} 16. Rfe1 {[%clk 0:02:00.5]} 16... Rfe8 {[%clk
0:02:39.4]} 17. Bf1 {[%clk 0:01:58.6]} 17... Nh5 {[%clk 0:02:32.5]} 18. Qh4
{[%clk 0:01:56.5]} 18... Ndf6 {[%clk 0:02:28.2]} 19. Rxd8 {[%clk 0:01:30.2]}
19... Rxd8 {[%clk 0:02:25.8]} 20. Bd3 {[%clk 0:01:24.9]} 20... Nf4 {[%clk
0:02:23.2]} 21. Nd5 {[%clk 0:00:52]} 21... N6xd5 {[%clk 0:02:15.2]} 22. exd5
{[%clk 0:00:52.9]} 22... Qxh4 {[%clk 0:02:15.6]} 23. Nxh4 {[%clk 0:00:53.4]}
23... Nxd3 {[%clk 0:02:15.7]} 24. cxd3 {[%clk 0:00:53]} 24... Rxd5 {[%clk
0:02:15.9]} 25. Nf3 {[%clk 0:00:51.4]} 25... Rxd3 {[%clk 0:02:13.9]} 26. Nxe5
{[%clk 0:00:49.7]} 26... Rd2 {[%clk 0:02:14.1]} 27. b4 {[%clk 0:00:46.4]} 27...
Rc2 {[%clk 0:02:07.4]} 28. h3 {[%clk 0:00:42.8]} 28... Bd5 {[%clk 0:02:07]} 29.
Nd7 {[%clk 0:00:36.8]} 29... Rc3 {[%clk 0:02:05.2]} 30. Re3 {[%clk 0:00:35.7]}
30... Rc1+ {[%clk 0:02:05]} 31. Kh2 {[%clk 0:00:35.4]} 31... Rc2 {[%clk
0:02:05.9]} 32. Kg3 {[%clk 0:00:34.7]} 32... g5 {[%clk 0:02:04.7]} 33. Nc5
{[%clk 0:00:33]} 33... f5 {[%clk 0:02:04.3]} 34. Re7+ {[%clk 0:00:25.7]} 34...
Kf6 {[%clk 0:02:03.8]} 35. Rxc7 {[%clk 0:00:25.8]} 35... f4+ {[%clk 0:02:00.8]}
36. Kg4 {[%clk 0:00:21.7]} 36... Kg6 {[%clk 0:01:58.3]} 37. h4 {[%clk 0:00:15]}
37... h5+ {[%clk 0:01:58.5]} 38. Kh3 {[%clk 0:00:15.2]} 38... g4+ {[%clk
0:01:59.4]} 39. Kh2 {[%clk 0:00:15.5]} 39... Rxf2 {[%clk 0:01:59.8]} 40. Rd7
{[%clk 0:00:12.9]} 40... g3+ {[%clk 0:01:52.7]} 41. Kg1 {[%clk 0:00:11.1]} 41...
Rxg2+ {[%clk 0:01:53]} 42. Kf1 {[%clk 0:00:11]} 42... Rf2+ {[%clk 0:01:53.2]}
43. Ke1 {[%clk 0:00:11.4]} 43... Bc4 {[%clk 0:01:52.2]} 44. Nd3 {[%clk
0:00:04.4]} 44... Bxd3 {[%clk 0:01:51.4]} 45. Rxd3 {[%clk 0:00:04.6]} 45... Kf5
{[%clk 0:01:51.6]} 46. Rd6 {[%clk 0:00:02.5]} 46... Ra2 {[%clk 0:01:50.7]} 47.
Rxa6 {[%clk 0:00:03.4]} 47... g2 {[%clk 0:01:51]} 0-1

[Event "*** Titled Tuesday Blitz"]
[Site "Chess.com"]
[Date "2020.12.01"]
[Round "5"]
[White "MomchilPetkov"]
[Black "Luklei18"]
[Result "0-1"]
[WhiteElo "2639"]
[BlackElo "2451"]
[TimeControl "180+1"]
[EndTime "10:53:30 PST"]
[Termination "Luklei18 won by resignation"]

1. d4 {[%clk 0:03:00.9]} 1... Nf6 {[%clk 0:02:59.4]} 2. Bg5 {[%clk 0:02:57.1]}
2... d5 {[%clk 0:02:58.1]} 3. e3 {[%clk 0:02:55.8]} 3... c5 {[%clk 0:02:56.7]}
4. Bxf6 {[%clk 0:02:55.5]} 4... exf6 {[%clk 0:02:52.1]} 5. c3 {[%clk 0:02:44.1]}
5... Nc6 {[%clk 0:02:51.4]} 6. Nf3 {[%clk 0:02:42.6]} 6... Bg4 {[%clk
0:02:50.8]} 7. Be2 {[%clk 0:02:36.8]} 7... c4 {[%clk 0:02:45.4]} 8. O-O {[%clk
0:02:35.8]} 8... Bd6 {[%clk 0:02:44.7]} 9. Nbd2 {[%clk 0:02:27.1]} 9... f5
{[%clk 0:02:25.5]} 10. b3 {[%clk 0:02:22.6]} 10... b5 {[%clk 0:02:25]} 11. a4
{[%clk 0:02:21.9]} 11... a6 {[%clk 0:02:24.9]} 12. axb5 {[%clk 0:01:51.5]} 12...
axb5 {[%clk 0:02:25.8]} 13. Rxa8 {[%clk 0:01:34.5]} 13... Qxa8 {[%clk
0:02:26.7]} 14. bxc4 {[%clk 0:01:33.5]} 14... bxc4 {[%clk 0:02:26.6]} 15. Nh4
{[%clk 0:01:34.1]} 15... Bxe2 {[%clk 0:02:20]} 16. Qxe2 {[%clk 0:01:33.9]} 16...
g6 {[%clk 0:02:17]} 17. g4 {[%clk 0:01:14]} 17... Qd8 {[%clk 0:01:58.3]} 18. Ng2
{[%clk 0:01:04.1]} 18... fxg4 {[%clk 0:01:56.5]} 19. Qxg4 {[%clk 0:01:04.2]}
19... O-O {[%clk 0:01:52.3]} 20. Qf3 {[%clk 0:00:57.6]} 20... Ne7 {[%clk
0:01:39.7]} 21. Nf4 {[%clk 0:00:57]} 21... Qc7 {[%clk 0:01:31.7]} 22. Nxd5
{[%clk 0:00:52.9]} 22... Nxd5 {[%clk 0:01:31.6]} 23. Qxd5 {[%clk 0:00:52.3]}
23... Bxh2+ {[%clk 0:01:32]} 24. Kg2 {[%clk 0:00:49.8]} 24... Rd8 {[%clk
0:01:19]} 25. Qxc4 {[%clk 0:00:47.8]} 25... Qe7 {[%clk 0:01:19.2]} 26. Nf3
{[%clk 0:00:43.5]} 26... Qe4 {[%clk 0:01:06.6]} 27. Kxh2 {[%clk 0:00:26.7]}
27... Qxf3 {[%clk 0:01:06.4]} 28. Qc7 {[%clk 0:00:27.3]} 28... Rd5 {[%clk
0:00:56.5]} 29. Qg3 {[%clk 0:00:22.3]} 29... Rh5+ {[%clk 0:00:56.2]} 0-1